[Event "*** Titled Tuesday Blitz"]
[Site "Chess.com"]
[Date "2020.05.12"]
[Round "2"]
[White "GM_LOADING"]
[Black "ElGasanov"]
[Result "0-1"]
[WhiteElo "2490"]
[BlackElo "2727"]
[TimeControl "180+1"]
[EndTime "10:19:35 PDT"]
[Termination "ElGasanov won by checkmate"]

1. e4 {[%clk 0:03:00.9]} 1... c5 {[%clk 0:02:58.1]} 2. Nf3 {[%clk 0:03:00.9]}
2... Nc6 {[%clk 0:02:58.6]} 3. d4 {[%clk 0:03:01.4]} 3... cxd4 {[%clk
0:02:59.2]} 4. Nxd4 {[%clk 0:03:02.3]} 4... Nf6 {[%clk 0:02:59.8]} 5. Nc3 {[%clk
0:03:02.5]} 5... e6 {[%clk 0:03:00.5]} 6. Ndb5 {[%clk 0:03:01.9]} 6... Bc5
{[%clk 0:02:59.9]} 7. Bf4 {[%clk 0:03:01.1]} 7... O-O {[%clk 0:02:59.6]} 8. Bc7
{[%clk 0:03:01.1]} 8... Qe7 {[%clk 0:02:59.4]} 9. Bd6 {[%clk 0:03:00.4]} 9...
Bxd6 {[%clk 0:02:59.4]} 10. Qxd6 {[%clk 0:03:01]} 10... Qd8 {[%clk 0:02:58.5]}
11. O-O-O {[%clk 0:02:27.5]} 11... a6 {[%clk 0:02:57.9]} 12. Nd4 {[%clk
0:02:26.3]} 12... Qb6 {[%clk 0:02:53.4]} 13. Nxc6 {[%clk 0:02:05.3]} 13... bxc6
{[%clk 0:02:53]} 14. f3 {[%clk 0:01:58.6]} 14... Ne8 {[%clk 0:02:38.2]} 15. Qd2
{[%clk 0:01:31.9]} 15... d5 {[%clk 0:02:36.8]} 16. Bd3 {[%clk 0:01:27.6]} 16...
Rb8 {[%clk 0:02:30.3]} 17. Na4 {[%clk 0:01:17.9]} 17... Qd4 {[%clk 0:02:18.5]}
18. Qa5 {[%clk 0:01:01.5]} 18... Nd6 {[%clk 0:02:04]} 19. Rhe1 {[%clk
0:00:30.3]} 19... Qb4 {[%clk 0:01:48]} 20. Qxb4 {[%clk 0:00:28.1]} 20... Rxb4
{[%clk 0:01:48.9]} 21. Nc5 {[%clk 0:00:28]} 21... a5 {[%clk 0:01:31.4]} 22. e5
{[%clk 0:00:19.2]} 22... Nb7 {[%clk 0:01:25.9]} 23. c3 {[%clk 0:00:11]} 23...
Rh4 {[%clk 0:01:26]} 24. Nxb7 {[%clk 0:00:11.1]} 24... Bxb7 {[%clk 0:01:25.3]}
25. h3 {[%clk 0:00:12]} 25... c5 {[%clk 0:01:20.2]} 26. Bf1 {[%clk 0:00:09.3]}
26... f6 {[%clk 0:01:07.1]} 27. g3 {[%clk 0:00:06]} 27... Rh6 {[%clk 0:01:04.4]}
28. exf6 {[%clk 0:00:06]} 28... Rhxf6 {[%clk 0:00:52.2]} 29. f4 {[%clk
0:00:06.6]} 29... h6 {[%clk 0:00:42.6]} 30. h4 {[%clk 0:00:06.9]} 30... g5
{[%clk 0:00:43.1]} 31. hxg5 {[%clk 0:00:06.5]} 31... hxg5 {[%clk 0:00:44]} 32.
Bh3 {[%clk 0:00:07]} 32... Kf7 {[%clk 0:00:26]} 33. fxg5 {[%clk 0:00:07]} 33...
Rg6 {[%clk 0:00:26.6]} 34. Re5 {[%clk 0:00:07]} 34... Rfg8 {[%clk 0:00:23.1]}
35. Rde1 {[%clk 0:00:07.1]} 35... Bc8 {[%clk 0:00:23.4]} 36. c4 {[%clk
0:00:05.6]} 36... dxc4 {[%clk 0:00:18.1]} 37. Rxc5 {[%clk 0:00:05.1]} 37... Ke7
{[%clk 0:00:16.5]} 38. Rxc4 {[%clk 0:00:04.7]} 38... Rxg5 {[%clk 0:00:15.9]} 39.
Rc6 {[%clk 0:00:02.8]} 39... Bd7 {[%clk 0:00:13]} 40. Ra6 {[%clk 0:00:03.3]}
40... Rxg3 {[%clk 0:00:12.8]} 41. Bxe6 {[%clk 0:00:03.1]} 41... Rg1 {[%clk
0:00:13.5]} 42. Rxg1 {[%clk 0:00:01.4]} 42... Rxg1+ {[%clk 0:00:12.8]} 43. Kd2
{[%clk 0:00:02.3]} 43... Bxe6 {[%clk 0:00:13.1]} 44. Rxa5 {[%clk 0:00:03.2]}
44... Rg2+ {[%clk 0:00:13.2]} 45. Kc3 {[%clk 0:00:04.1]} 45... Kd6 {[%clk
0:00:13]} 46. b3 {[%clk 0:00:03.4]} 46... Bd5 {[%clk 0:00:12]} 47. Kb4 {[%clk
0:00:03.5]} 47... Rg4+ {[%clk 0:00:10.3]} 48. Ka3 {[%clk 0:00:03.3]} 48... Kc6
{[%clk 0:00:08.6]} 49. Ra6+ {[%clk 0:00:03.4]} 49... Kb5 {[%clk 0:00:08.2]} 50.
Rh6 {[%clk 0:00:03.9]} 50... Be4 {[%clk 0:00:06.8]} 51. Rh5+ {[%clk 0:00:04.1]}
51... Kb6 {[%clk 0:00:07.4]} 52. b4 {[%clk 0:00:03.5]} 52... Rg3+ {[%clk
0:00:06.7]} 53. Kb2 {[%clk 0:00:03.6]} 53... Rg2+ {[%clk 0:00:05.8]} 54. Ka3
{[%clk 0:00:03.2]} 54... Bb1 {[%clk 0:00:03.3]} 55. Rh6+ {[%clk 0:00:03.2]}
55... Kb7 {[%clk 0:00:03.2]} 56. Ka4 {[%clk 0:00:03.3]} 56... Rxa2+ {[%clk
0:00:02.4]} 57. Kb3 {[%clk 0:00:03.5]} 57... Rg2 {[%clk 0:00:01.1]} 58. Rh5
{[%clk 0:00:03.6]} 58... Rg3+ {[%clk 0:00:01.2]} 59. Ka4 {[%clk 0:00:03.8]}
59... Bg6 {[%clk 0:00:01.7]} 60. Rh6 {[%clk 0:00:03.3]} 60... Kb6 {[%clk
0:00:02.6]} 61. Rh8 {[%clk 0:00:02.8]} 61... Bc2# {[%clk 0:00:01.7]} 0-1

[Event "*** Titled Tuesday Blitz"]
[Site "Chess.com"]
[Date "2020.05.12"]
[Round "2"]
[White "Dixit_Nikhil"]
[Black "GukeshDommaraju"]
[Result "0-1"]
[WhiteElo "2502"]
[BlackElo "2752"]
[TimeControl "180+1"]
[EndTime "10:19:38 PDT"]
[Termination "GukeshDommaraju won by checkmate"]

1. e4 {[%clk 0:03:00.9]} 1... c5 {[%clk 0:02:59.8]} 2. Nf3 {[%clk 0:03:00.7]}
2... Nc6 {[%clk 0:02:59.5]} 3. Nc3 {[%clk 0:02:56.4]} 3... e5 {[%clk 0:02:58.9]}
4. Bc4 {[%clk 0:02:52.3]} 4... Be7 {[%clk 0:02:59.1]} 5. Nd5 {[%clk 0:02:46.3]}
5... Nf6 {[%clk 0:02:37.2]} 6. Nxf6+ {[%clk 0:02:43.9]} 6... Bxf6 {[%clk
0:02:37]} 7. O-O {[%clk 0:02:44.4]} 7... O-O {[%clk 0:02:33.8]} 8. d3 {[%clk
0:02:43.3]} 8... d6 {[%clk 0:02:32.2]} 9. h3 {[%clk 0:02:41.6]} 9... Be6 {[%clk
0:02:31.7]} 10. a4 {[%clk 0:02:37.1]} 10... d5 {[%clk 0:02:26.3]} 11. exd5
{[%clk 0:02:32.3]} 11... Bxd5 {[%clk 0:02:25.4]} 12. Bxd5 {[%clk 0:02:31.8]}
12... Qxd5 {[%clk 0:02:25.1]} 13. Nd2 {[%clk 0:02:32.7]} 13... Rad8 {[%clk
0:02:20.4]} 14. Ne4 {[%clk 0:01:59]} 14... Be7 {[%clk 0:02:19.5]} 15. Nc3 {[%clk
0:01:52.3]} 15... Qe6 {[%clk 0:02:15.4]} 16. f4 {[%clk 0:01:42.7]} 16... f5
{[%clk 0:01:48.8]} 17. fxe5 {[%clk 0:01:34.4]} 17... Qxe5 {[%clk 0:01:43]} 18.
Bf4 {[%clk 0:01:33.2]} 18... Qd4+ {[%clk 0:01:38.5]} 19. Kh1 {[%clk 0:01:33.4]}
19... Bf6 {[%clk 0:01:23.4]} 20. Qf3 {[%clk 0:01:27.9]} 20... Qd7 {[%clk
0:01:20.5]} 21. Rae1 {[%clk 0:01:23.6]} 21... Nd4 {[%clk 0:01:01.7]} 22. Qf2
{[%clk 0:01:18.5]} 22... Rfe8 {[%clk 0:01:00.8]} 23. Rxe8+ {[%clk 0:01:09.4]}
23... Rxe8 {[%clk 0:01:01]} 24. Bc1 {[%clk 0:00:38.3]} 24... Qc6 {[%clk
0:00:57]} 25. Qg3 {[%clk 0:00:33.9]} 25... g6 {[%clk 0:00:47.4]} 26. Qf2 {[%clk
0:00:29.2]} 26... Bg7 {[%clk 0:00:46]} 27. b3 {[%clk 0:00:24.9]} 27... b6 {[%clk
0:00:39.2]} 28. Bd2 {[%clk 0:00:24.9]} 28... Nxc2 {[%clk 0:00:38]} 29. Qf4
{[%clk 0:00:23.5]} 29... Nd4 {[%clk 0:00:35.6]} 30. Re1 {[%clk 0:00:21.3]} 30...
Rxe1+ {[%clk 0:00:34.5]} 31. Bxe1 {[%clk 0:00:22.2]} 31... h5 {[%clk 0:00:30.1]}
32. Qb8+ {[%clk 0:00:21.6]} 32... Kh7 {[%clk 0:00:30.1]} 33. Qxa7 {[%clk
0:00:21.9]} 33... Nxb3 {[%clk 0:00:23.3]} 34. Qe7 {[%clk 0:00:20.3]} 34... Nd4
{[%clk 0:00:20.3]} 35. Nb5 {[%clk 0:00:19.7]} 35... Qe6 {[%clk 0:00:15.1]} 36.
Qxe6 {[%clk 0:00:17.8]} 36... Nxe6 {[%clk 0:00:15.4]} 37. Kg1 {[%clk 0:00:16.6]}
37... Nf4 {[%clk 0:00:15.1]} 38. Kf1 {[%clk 0:00:14.1]} 38... Nxd3 {[%clk
0:00:15.1]} 39. Bd2 {[%clk 0:00:14.7]} 39... Nb2 {[%clk 0:00:15]} 40. a5 {[%clk
0:00:14.1]} 40... bxa5 {[%clk 0:00:11.9]} 41. Bxa5 {[%clk 0:00:15]} 41... Nc4
{[%clk 0:00:12.1]} 42. Bc7 {[%clk 0:00:14.8]} 42... Ne3+ {[%clk 0:00:12.2]} 43.
Kf2 {[%clk 0:00:14.6]} 43... Nd5 {[%clk 0:00:12.2]} 44. Bd6 {[%clk 0:00:15]}
44... c4 {[%clk 0:00:12.6]} 45. Na3 {[%clk 0:00:14.2]} 45... c3 {[%clk
0:00:11.7]} 46. Nc2 {[%clk 0:00:14.8]} 46... Kg8 {[%clk 0:00:10.6]} 47. Kf3
{[%clk 0:00:15.1]} 47... Kf7 {[%clk 0:00:10.8]} 48. g4 {[%clk 0:00:14.5]} 48...
fxg4+ {[%clk 0:00:05.4]} 49. hxg4 {[%clk 0:00:15.4]} 49... h4 {[%clk 0:00:06.1]}
50. g5 {[%clk 0:00:15.3]} 50... Ke6 {[%clk 0:00:06.6]} 51. Bc5 {[%clk
0:00:15.1]} 51... Kf5 {[%clk 0:00:07]} 52. Bf2 {[%clk 0:00:11.9]} 52... Kxg5
{[%clk 0:00:07]} 53. Be1 {[%clk 0:00:12.4]} 53... Kh5 {[%clk 0:00:07.3]} 54. Bf2
{[%clk 0:00:12.7]} 54... g5 {[%clk 0:00:07.6]} 55. Ke4 {[%clk 0:00:13.4]} 55...
Nf6+ {[%clk 0:00:07.8]} 56. Kf5 {[%clk 0:00:13.7]} 56... g4 {[%clk 0:00:08.1]}
57. Nd4 {[%clk 0:00:14.2]} 57... g3 {[%clk 0:00:07.5]} 58. Be3 {[%clk
0:00:14.6]} 58... Nd5 {[%clk 0:00:07.6]} 59. Bc1 {[%clk 0:00:13.8]} 59... Bxd4
{[%clk 0:00:07.2]} 60. Ke4 {[%clk 0:00:13.5]} 60... g2 {[%clk 0:00:07.6]} 61.
Kxd5 {[%clk 0:00:13.5]} 61... g1=Q {[%clk 0:00:08]} 62. Bf4 {[%clk 0:00:14.3]}
62... Qg2+ {[%clk 0:00:07.7]} 63. Ke6 {[%clk 0:00:14.2]} 63... Qe4+ {[%clk
0:00:07.5]} 64. Kf7 {[%clk 0:00:13.8]} 64... Qxf4+ {[%clk 0:00:07.7]} 65. Kg8
{[%clk 0:00:14.7]} 65... Qf6 {[%clk 0:00:06.8]} 66. Kh7 {[%clk 0:00:15.6]} 66...
Qg7# {[%clk 0:00:07.3]} 0-1

[Event "*** Titled Tuesday Blitz"]
[Site "Chess.com"]
[Date "2020.05.12"]
[Round "2"]
[White "VALPARAISO37"]
[Black "Borsuk_Konstantin"]
[Result "0-1"]
[WhiteElo "2392"]
[BlackElo "2653"]
[TimeControl "180+1"]
[EndTime "10:19:40 PDT"]
[Termination "Borsuk_Konstantin won by checkmate"]

1. d4 {[%clk 0:03:00.9]} 1... Nf6 {[%clk 0:02:59.4]} 2. c4 {[%clk 0:03:00.3]}
2... e6 {[%clk 0:02:59.4]} 3. Nc3 {[%clk 0:03:00]} 3... Bb4 {[%clk 0:02:59.1]}
4. a3 {[%clk 0:02:59.4]} 4... Bxc3+ {[%clk 0:02:58.6]} 5. bxc3 {[%clk
0:02:59.6]} 5... b6 {[%clk 0:02:52.9]} 6. e3 {[%clk 0:02:59]} 6... Nc6 {[%clk
0:02:52.7]} 7. Bd3 {[%clk 0:02:55.7]} 7... Na5 {[%clk 0:02:52.6]} 8. e4 {[%clk
0:02:55.2]} 8... d6 {[%clk 0:02:51.8]} 9. Ne2 {[%clk 0:02:48.7]} 9... c5 {[%clk
0:02:49]} 10. Ng3 {[%clk 0:02:46]} 10... Qc7 {[%clk 0:02:40.9]} 11. d5 {[%clk
0:02:45]} 11... Ba6 {[%clk 0:02:29]} 12. Qe2 {[%clk 0:02:43.8]} 12... O-O-O
{[%clk 0:02:23.3]} 13. O-O {[%clk 0:02:37.2]} 13... Rde8 {[%clk 0:02:12.2]} 14.
Bg5 {[%clk 0:02:36]} 14... Nd7 {[%clk 0:02:11.4]} 15. Bf4 {[%clk 0:02:28.4]}
15... Ne5 {[%clk 0:01:56.7]} 16. Bxe5 {[%clk 0:02:27]} 16... dxe5 {[%clk
0:01:57.6]} 17. f3 {[%clk 0:02:18]} 17... h5 {[%clk 0:01:53]} 18. Rfb1 {[%clk
0:02:08.2]} 18... g5 {[%clk 0:01:46.3]} 19. Nf1 {[%clk 0:02:07.1]} 19... Kb8
{[%clk 0:01:27.2]} 20. Ne3 {[%clk 0:02:06.8]} 20... Qd7 {[%clk 0:01:25.5]} 21.
a4 {[%clk 0:02:00.2]} 21... Qd8 {[%clk 0:01:14.8]} 22. Rb5 {[%clk 0:01:57.5]}
22... Bxb5 {[%clk 0:01:13.5]} 23. axb5 {[%clk 0:01:57.7]} 23... Qc7 {[%clk
0:01:07.7]} 24. Ra4 {[%clk 0:01:48.2]} 24... Reg8 {[%clk 0:01:06.5]} 25. Kh1
{[%clk 0:01:47.3]} 25... Qd8 {[%clk 0:01:04.8]} 26. Qa2 {[%clk 0:01:44.2]} 26...
g4 {[%clk 0:01:03.3]} 27. Qf2 {[%clk 0:01:36.1]} 27... gxf3 {[%clk 0:00:54.3]}
28. Qxf3 {[%clk 0:01:35.4]} 28... Qg5 {[%clk 0:00:50.2]} 29. g3 {[%clk
0:01:31.8]} 29... h4 {[%clk 0:00:46.1]} 30. g4 {[%clk 0:01:31.7]} 30... Qf4
{[%clk 0:00:44.2]} 31. Be2 {[%clk 0:01:28]} 31... h3 {[%clk 0:00:41.4]} 32. Ra1
{[%clk 0:01:24.7]} 32... Qxf3+ {[%clk 0:00:29.7]} 33. Bxf3 {[%clk 0:01:23.8]}
33... Kc7 {[%clk 0:00:30.1]} 34. Rf1 {[%clk 0:01:18.3]} 34... Kd6 {[%clk
0:00:29.2]} 35. Be2 {[%clk 0:01:17.4]} 35... Rg7 {[%clk 0:00:28.4]} 36. Rf6
{[%clk 0:01:16.3]} 36... Ke7 {[%clk 0:00:26.9]} 37. Rf1 {[%clk 0:01:15.6]} 37...
Rd8 {[%clk 0:00:18.4]} 38. Rf3 {[%clk 0:01:14.8]} 38... Nb7 {[%clk 0:00:18.2]}
39. Rxh3 {[%clk 0:01:14.2]} 39... Nd6 {[%clk 0:00:18.8]} 40. Bd3 {[%clk
0:01:13.4]} 40... a6 {[%clk 0:00:18.6]} 41. bxa6 {[%clk 0:01:12.8]} 41... Ra8
{[%clk 0:00:19.1]} 42. Rg3 {[%clk 0:01:08.3]} 42... Rxa6 {[%clk 0:00:19.5]} 43.
h4 {[%clk 0:01:08.1]} 43... Ra3 {[%clk 0:00:19.9]} 44. Bf1 {[%clk 0:01:03.9]}
44... Kf8 {[%clk 0:00:18.5]} 45. Nc2 {[%clk 0:00:57]} 45... Ra2 {[%clk
0:00:17.6]} 46. Ne3 {[%clk 0:00:56.1]} 46... Nxe4 {[%clk 0:00:17.7]} 47. Rg2
{[%clk 0:00:54.4]} 47... Rxg2 {[%clk 0:00:16.4]} 48. Kxg2 {[%clk 0:00:53.5]}
48... Ke7 {[%clk 0:00:11.7]} 49. dxe6 {[%clk 0:00:48.4]} 49... Kxe6 {[%clk
0:00:09.8]} 50. Kh3 {[%clk 0:00:47.1]} 50... Nd6 {[%clk 0:00:08.8]} 51. g5
{[%clk 0:00:45.8]} 51... f6 {[%clk 0:00:08]} 52. gxf6 {[%clk 0:00:27.5]} 52...
Kxf6 {[%clk 0:00:07.4]} 53. Bd3 {[%clk 0:00:27.1]} 53... Rg1 {[%clk 0:00:06.2]}
54. Ng4+ {[%clk 0:00:26.4]} 54... Ke6 {[%clk 0:00:06]} 55. h5 {[%clk 0:00:26]}
55... Rc1 {[%clk 0:00:04.7]} 56. h6 {[%clk 0:00:25]} 56... Rxc3 {[%clk
0:00:05.2]} 57. h7 {[%clk 0:00:19.7]} 57... Rxd3+ {[%clk 0:00:04]} 58. Kh4
{[%clk 0:00:20]} 58... Nf7 {[%clk 0:00:04.6]} 59. Nh6 {[%clk 0:00:18.4]} 59...
Nh8 {[%clk 0:00:05.1]} 60. Kg5 {[%clk 0:00:13.5]} 60... Rg3+ {[%clk 0:00:04.7]}
61. Kh4 {[%clk 0:00:12.7]} 61... Rg1 {[%clk 0:00:04.1]} 62. Ng4 {[%clk
0:00:12.7]} 62... e4 {[%clk 0:00:04.4]} 63. Ne3 {[%clk 0:00:12.1]} 63... Ke5
{[%clk 0:00:04.4]} 64. Nd5 {[%clk 0:00:12.1]} 64... Kd4 {[%clk 0:00:04]} 65.
Nxb6 {[%clk 0:00:12.2]} 65... e3 {[%clk 0:00:04]} 66. Na4 {[%clk 0:00:11.6]}
66... e2 {[%clk 0:00:04.5]} 67. Nb2 {[%clk 0:00:11.4]} 67... e1=Q+ {[%clk
0:00:04.1]} 68. Kh5 {[%clk 0:00:09.7]} 68... Qe5+ {[%clk 0:00:04.3]} 69. Kh4
{[%clk 0:00:07.7]} 69... Qh2# {[%clk 0:00:04.7]} 0-1

[Event "*** Titled Tuesday Blitz"]
[Site "Chess.com"]
[Date "2020.05.12"]
[Round "2"]
[White "The_Machine04"]
[Black "FelixBlohberger"]
[Result "0-1"]
[WhiteElo "2309"]
[BlackElo "2624"]
[TimeControl "180+1"]
[EndTime "10:19:43 PDT"]
[Termination "FelixBlohberger won by checkmate"]

1. d4 {[%clk 0:03:00.9]} 1... Nf6 {[%clk 0:02:58.9]} 2. Bg5 {[%clk 0:02:59.5]}
2... e6 {[%clk 0:02:52.8]} 3. Nd2 {[%clk 0:02:57.7]} 3... d5 {[%clk 0:02:52.3]}
4. e3 {[%clk 0:02:55.8]} 4... Nbd7 {[%clk 0:02:50.8]} 5. f4 {[%clk 0:02:54.9]}
5... c5 {[%clk 0:02:49.2]} 6. c3 {[%clk 0:02:54.7]} 6... b6 {[%clk 0:02:45.5]}
7. Bd3 {[%clk 0:02:51.9]} 7... a5 {[%clk 0:02:36.2]} 8. Qe2 {[%clk 0:02:50.1]}
8... Be7 {[%clk 0:02:32.7]} 9. Ngf3 {[%clk 0:02:48.9]} 9... Qc7 {[%clk
0:02:27.9]} 10. Ne5 {[%clk 0:02:47.6]} 10... h6 {[%clk 0:02:24.8]} 11. Bxf6
{[%clk 0:02:47]} 11... Nxf6 {[%clk 0:02:17.6]} 12. O-O {[%clk 0:02:44.6]} 12...
Bb7 {[%clk 0:01:45.3]} 13. Bb5+ {[%clk 0:02:38.8]} 13... Kf8 {[%clk 0:01:44.8]}
14. f5 {[%clk 0:02:28.1]} 14... exf5 {[%clk 0:01:38.5]} 15. Rxf5 {[%clk
0:02:26]} 15... Bc8 {[%clk 0:01:38.8]} 16. Rf2 {[%clk 0:02:21.6]} 16... Be6
{[%clk 0:01:38.9]} 17. Raf1 {[%clk 0:02:15.1]} 17... Kg8 {[%clk 0:01:37.1]} 18.
Bd3 {[%clk 0:02:12.4]} 18... Rf8 {[%clk 0:01:22.4]} 19. e4 {[%clk 0:01:49.1]}
19... cxd4 {[%clk 0:01:19]} 20. cxd4 {[%clk 0:01:44]} 20... dxe4 {[%clk
0:01:17.7]} 21. Nxe4 {[%clk 0:01:43.9]} 21... Nd7 {[%clk 0:00:44.4]} 22. Nxd7
{[%clk 0:01:21.1]} 22... Qxd7 {[%clk 0:00:43.8]} 23. Qe3 {[%clk 0:01:21.5]}
23... Bd5 {[%clk 0:00:39.3]} 24. Nc3 {[%clk 0:01:06]} 24... Be6 {[%clk
0:00:36.8]} 25. Be4 {[%clk 0:00:45.9]} 25... Rd8 {[%clk 0:00:35.1]} 26. d5
{[%clk 0:00:43.7]} 26... Bc5 {[%clk 0:00:24.1]} 27. dxe6 {[%clk 0:00:29.9]}
27... Bxe3 {[%clk 0:00:21.4]} 28. exd7 {[%clk 0:00:29.6]} 28... Rxd7 {[%clk
0:00:20]} 29. Kh1 {[%clk 0:00:27.6]} 29... Bxf2 {[%clk 0:00:19.9]} 30. Rxf2
{[%clk 0:00:28.5]} 30... g6 {[%clk 0:00:19.2]} 31. g3 {[%clk 0:00:19.9]} 31...
Kg7 {[%clk 0:00:19.3]} 32. Kg2 {[%clk 0:00:20.4]} 32... Rhd8 {[%clk 0:00:17.8]}
33. Re2 {[%clk 0:00:19.7]} 33... f5 {[%clk 0:00:14.8]} 34. Bf3 {[%clk
0:00:18.8]} 34... Kf6 {[%clk 0:00:12.5]} 35. Kf2 {[%clk 0:00:18.6]} 35... Rd2
{[%clk 0:00:12.1]} 36. Ke1 {[%clk 0:00:15.6]} 36... Rxe2+ {[%clk 0:00:12.1]} 37.
Kxe2 {[%clk 0:00:16.5]} 37... Rd6 {[%clk 0:00:12]} 38. a4 {[%clk 0:00:14.8]}
38... Ke5 {[%clk 0:00:11.9]} 39. Ke3 {[%clk 0:00:14.6]} 39... g5 {[%clk
0:00:11.9]} 40. Be2 {[%clk 0:00:11.2]} 40... Rd4 {[%clk 0:00:09.9]} 41. Bb5
{[%clk 0:00:10]} 41... Rb4 {[%clk 0:00:08.3]} 42. Nd1 {[%clk 0:00:08.8]} 42...
Rb3+ {[%clk 0:00:08.7]} 43. Ke2 {[%clk 0:00:08.8]} 43... Kd4 {[%clk 0:00:08.3]}
44. Kd2 {[%clk 0:00:08.9]} 44... f4 {[%clk 0:00:07.8]} 45. gxf4 {[%clk
0:00:08.7]} 45... gxf4 {[%clk 0:00:07.3]} 46. Ke2 {[%clk 0:00:09.1]} 46... Rh3
{[%clk 0:00:06.5]} 47. Nf2 {[%clk 0:00:08.4]} 47... Rxh2 {[%clk 0:00:06]} 48.
Kf3 {[%clk 0:00:09]} 48... Kc5 {[%clk 0:00:05.6]} 49. Bd3 {[%clk 0:00:07.1]}
49... Kb4 {[%clk 0:00:05]} 50. Bb5 {[%clk 0:00:07.3]} 50... Kb3 {[%clk
0:00:04.7]} 51. Bc6 {[%clk 0:00:07.2]} 51... Kxb2 {[%clk 0:00:05.1]} 52. Bb5
{[%clk 0:00:07.7]} 52... Kb3 {[%clk 0:00:05.6]} 53. Ng4 {[%clk 0:00:07.8]} 53...
Rh3+ {[%clk 0:00:05.2]} 54. Kxf4 {[%clk 0:00:08]} 54... Kb4 {[%clk 0:00:05.3]}
55. Kf5 {[%clk 0:00:07.2]} 55... Ra3 {[%clk 0:00:05.4]} 56. Nxh6 {[%clk
0:00:06.5]} 56... Rxa4 {[%clk 0:00:05.8]} 57. Bxa4 {[%clk 0:00:07]} 57... Kxa4
{[%clk 0:00:06.7]} 58. Ke4 {[%clk 0:00:07.8]} 58... Kb3 {[%clk 0:00:07]} 59. Kd3
{[%clk 0:00:08]} 59... a4 {[%clk 0:00:07.9]} 60. Nf5 {[%clk 0:00:08.3]} 60... a3
{[%clk 0:00:08.2]} 61. Nd4+ {[%clk 0:00:08.9]} 61... Kb2 {[%clk 0:00:08.6]} 62.
Nc2 {[%clk 0:00:08.1]} 62... b5 {[%clk 0:00:08.1]} 63. Nb4 {[%clk 0:00:07.3]}
63... a2 {[%clk 0:00:08.6]} 64. Nxa2 {[%clk 0:00:07]} 64... Kxa2 {[%clk
0:00:09.5]} 65. Kc3 {[%clk 0:00:07.9]} 65... Ka3 {[%clk 0:00:09.8]} 66. Kc2
{[%clk 0:00:08.5]} 66... b4 {[%clk 0:00:10.3]} 67. Kb1 {[%clk 0:00:08.1]} 67...
Kb3 {[%clk 0:00:10.8]} 68. Ka1 {[%clk 0:00:06.8]} 68... Kc2 {[%clk 0:00:11.3]}
69. Ka2 {[%clk 0:00:07.1]} 69... b3+ {[%clk 0:00:12.2]} 70. Ka1 {[%clk 0:00:08]}
70... b2+ {[%clk 0:00:13]} 71. Ka2 {[%clk 0:00:08.9]} 71... b1=Q+ {[%clk
0:00:13.9]} 72. Ka3 {[%clk 0:00:09.8]} 72... Qb3# {[%clk 0:00:14.8]} 0-1